[Event "*** Titled Tuesday 3|2 Blitz"]
[Site "Chess.com"]
[Date "2016.04.05"]
[Round "1"]
[White "HKBurwell"]
[Black "Alex_Stripunsky"]
[Result "1-0"]
[WhiteElo "2440"]
[BlackElo "2055"]
[TimeControl "180+2"]
[EndTime "11:38:28 PDT"]
[Termination "HKBurwell won by checkmate"]

1. d4 {[%clk 0:03:01.9]} 1... d5 {[%clk 0:03:00.8]} 2. c4 {[%clk 0:03:03.3]}
2... c6 {[%clk 0:03:02.4]} 3. Nc3 {[%clk 0:03:04.7]} 3... Nf6 {[%clk 0:03:04]}
4. e3 {[%clk 0:03:06.2]} 4... e6 {[%clk 0:03:05.4]} 5. Nf3 {[%clk 0:03:07.9]}
5... Nbd7 {[%clk 0:03:06.6]} 6. b3 {[%clk 0:03:09.5]} 6... Bb4 {[%clk
0:03:04.3]} 7. Bd2 {[%clk 0:03:10.4]} 7... Bd6 {[%clk 0:03:04.4]} 8. Be2 {[%clk
0:03:04.4]} 8... O-O {[%clk 0:03:04.8]} 9. O-O {[%clk 0:03:05.2]} 9... b6 {[%clk
0:03:06]} 10. Bd3 {[%clk 0:03:03.1]} 10... Bb7 {[%clk 0:03:06.4]} 11. e4 {[%clk
0:03:01.1]} 11... dxe4 {[%clk 0:03:06.8]} 12. Nxe4 {[%clk 0:03:02]} 12... Nxe4
{[%clk 0:03:07.9]} 13. Bxe4 {[%clk 0:03:03.3]} 13... f5 {[%clk 0:03:08.3]} 14.
Bc2 {[%clk 0:03:00.9]} 14... c5 {[%clk 0:03:09.6]} 15. Bc3 {[%clk 0:02:41.3]}
15... Qc7 {[%clk 0:03:00.9]} 16. h3 {[%clk 0:02:36.1]} 16... Rad8 {[%clk
0:02:57]} 17. Ng5 {[%clk 0:02:33.8]} 17... Rde8 {[%clk 0:02:50.3]} 18. Re1
{[%clk 0:02:33.4]} 18... e5 {[%clk 0:02:44.7]} 19. d5 {[%clk 0:02:19.8]} 19...
e4 {[%clk 0:02:36.7]} 20. Qh5 {[%clk 0:01:55.3]} 20... Nf6 {[%clk 0:02:31.5]}
21. Bxf6 {[%clk 0:01:54.3]} 21... gxf6 {[%clk 0:02:32.9]} 22. Ne6 {[%clk
0:01:55.4]} 22... Rxe6 {[%clk 0:01:59.2]} 23. dxe6 {[%clk 0:01:55.6]} 23... Be5
{[%clk 0:01:56.1]} 24. Rad1 {[%clk 0:01:51.1]} 24... Qg7 {[%clk 0:01:37.6]} 25.
Rd7 {[%clk 0:01:37.3]} 25... Qg6 {[%clk 0:01:37.8]} 26. Qxg6+ {[%clk 0:01:37.6]}
26... hxg6 {[%clk 0:01:39.3]} 27. Rxb7 {[%clk 0:01:38.3]} 27... Re8 {[%clk
0:01:41.1]} 28. e7 {[%clk 0:01:35.6]} 28... Bd4 {[%clk 0:01:41.2]} 29. Kf1
{[%clk 0:01:31.2]} 29... Kf7 {[%clk 0:01:42.8]} 30. g4 {[%clk 0:01:30.1]} 30...
Ke6 {[%clk 0:01:43.9]} 31. f3 {[%clk 0:01:29.1]} 31... e3 {[%clk 0:01:44.2]} 32.
gxf5+ {[%clk 0:01:28.7]} 32... gxf5 {[%clk 0:01:45.8]} 33. Ke2 {[%clk
0:01:29.3]} 33... Ke5 {[%clk 0:01:46.9]} 34. Rg1 {[%clk 0:01:27.7]} 34... Kf4
{[%clk 0:01:48.1]} 35. Rg7 {[%clk 0:01:24.8]} 35... Rh8 {[%clk 0:01:48.2]} 36.
Rd7 {[%clk 0:01:01.4]} 36... Rxh3 {[%clk 0:01:45.9]} 37. Rg2 {[%clk 0:01:00.6]}
37... Rh1 {[%clk 0:01:34.5]} 38. e8=Q {[%clk 0:00:56]} 38... Rc1 {[%clk
0:01:36.1]} 39. Rxd4+ {[%clk 0:00:53.8]} 39... cxd4 {[%clk 0:01:35.8]} 40. Qb8#
{[%clk 0:00:54.8]} 1-0

[Event "*** Titled Tuesday 3|2 Blitz"]
[Site "Chess.com"]
[Date "2016.04.05"]
[Round "1"]
[White "Grootneus"]
[Black "joppie2"]
[Result "0-1"]
[WhiteElo "2037"]
[BlackElo "2393"]
[TimeControl "180+2"]
[EndTime "11:39:01 PDT"]
[Termination "joppie2 won by checkmate"]

1. e4 {[%clk 0:03:01.9]} 1... d5 {[%clk 0:02:58.9]} 2. exd5 {[%clk 0:03:02.3]}
2... Qxd5 {[%clk 0:02:59.3]} 3. Nc3 {[%clk 0:03:01.5]} 3... Qd6 {[%clk
0:03:00.7]} 4. d4 {[%clk 0:03:02.1]} 4... Nf6 {[%clk 0:03:01.1]} 5. Nf3 {[%clk
0:02:58.8]} 5... Bg4 {[%clk 0:03:01.7]} 6. Be2 {[%clk 0:02:59.6]} 6... Nc6
{[%clk 0:03:01.8]} 7. h3 {[%clk 0:02:59.2]} 7... Bxf3 {[%clk 0:02:59.7]} 8. Bxf3
{[%clk 0:02:56.2]} 8... O-O-O {[%clk 0:03:01.3]} 9. Bxc6 {[%clk 0:02:35.5]} 9...
Qxc6 {[%clk 0:02:59.9]} 10. O-O {[%clk 0:02:32.1]} 10... e5 {[%clk 0:02:59.9]}
11. Bg5 {[%clk 0:01:44.1]} 11... exd4 {[%clk 0:02:58.2]} 12. Bxf6 {[%clk
0:01:41.8]} 12... gxf6 {[%clk 0:02:56.6]} 13. Qg4+ {[%clk 0:01:17.1]} 13... Kb8
{[%clk 0:02:56]} 14. Rad1 {[%clk 0:00:58.9]} 14... Bc5 {[%clk 0:02:41.9]} 15.
Ne4 {[%clk 0:00:59.5]} 15... Rhg8 {[%clk 0:02:42.6]} 16. Qf5 {[%clk 0:00:59.7]}
16... Bb6 {[%clk 0:02:40.7]} 17. Rfe1 {[%clk 0:00:57.4]} 17... Qxc2 {[%clk
0:02:40.5]} 18. Qxf6 {[%clk 0:00:42.3]} 18... d3 {[%clk 0:02:36.3]} 19. Rd2
{[%clk 0:00:36.4]} 19... Qc4 {[%clk 0:02:23.3]} 20. Qf5 {[%clk 0:00:27]} 20...
a6 {[%clk 0:02:18.5]} 21. Nf6 {[%clk 0:00:27.7]} 21... Qb4 {[%clk 0:02:05.1]}
22. Red1 {[%clk 0:00:22.1]} 22... Rg6 {[%clk 0:01:56.5]} 23. Nd7+ {[%clk
0:00:19.2]} 23... Rxd7 {[%clk 0:01:40.7]} 24. Qxd7 {[%clk 0:00:20]} 24... Qe4
{[%clk 0:01:42]} 25. g4 {[%clk 0:00:13.7]} 25... h5 {[%clk 0:01:39.8]} 26. Qxd3
{[%clk 0:00:13.4]} 26... Qf4 {[%clk 0:01:40.2]} 27. Qd8+ {[%clk 0:00:08.6]}
27... Ka7 {[%clk 0:01:39.8]} 28. Rd4 {[%clk 0:00:09.6]} 28... Qf3 {[%clk
0:01:36.4]} 29. R4d3 {[%clk 0:00:08.6]} 29... Qxf2+ {[%clk 0:01:37.7]} 30. Kh1
{[%clk 0:00:09.4]} 30... hxg4 {[%clk 0:01:38.1]} 31. Qd5 {[%clk 0:00:09.5]}
31... gxh3 {[%clk 0:01:36.4]} 32. Rf3 {[%clk 0:00:09.4]} 32... Rg1+ {[%clk
0:01:37.2]} 33. Rxg1 {[%clk 0:00:09.6]} 33... Qxg1# {[%clk 0:01:39.1]} 0-1

[Event "*** Titled Tuesday 3|2 Blitz"]
[Site "Chess.com"]
[Date "2016.04.05"]
[Round "1"]
[White "pKiLz5Rn9b"]
[Black "cool64chess"]
[Result "1-0"]
[WhiteElo "2505"]
[BlackElo "2199"]
[TimeControl "180+2"]
[EndTime "11:39:10 PDT"]
[Termination "pKiLz5Rn9b won by resignation"]

1. e4 {[%clk 0:03:01.9]} 1... e6 {[%clk 0:03:00.8]} 2. d4 {[%clk 0:03:02.9]}
2... d5 {[%clk 0:03:01.7]} 3. Nd2 {[%clk 0:03:04.6]} 3... Be7 {[%clk 0:03:02.1]}
4. Ngf3 {[%clk 0:03:05.2]} 4... Nf6 {[%clk 0:03:02.9]} 5. e5 {[%clk 0:03:05.3]}
5... Nfd7 {[%clk 0:03:03.9]} 6. Bd3 {[%clk 0:03:06.9]} 6... c5 {[%clk
0:03:03.7]} 7. c3 {[%clk 0:03:06.5]} 7... Nc6 {[%clk 0:03:04.6]} 8. h4 {[%clk
0:03:02.3]} 8... b6 {[%clk 0:02:49.7]} 9. O-O {[%clk 0:02:59.6]} 9... a5 {[%clk
0:02:13.1]} 10. c4 {[%clk 0:02:49.6]} 10... Ba6 {[%clk 0:02:04.8]} 11. cxd5
{[%clk 0:02:48.5]} 11... Bxd3 {[%clk 0:02:00.2]} 12. dxc6 {[%clk 0:02:49.1]}
12... Nb8 {[%clk 0:01:59.1]} 13. Re1 {[%clk 0:02:49.1]} 13... Nxc6 {[%clk
0:01:54.6]} 14. Ne4 {[%clk 0:02:36.4]} 14... Bxe4 {[%clk 0:01:42.7]} 15. Rxe4
{[%clk 0:02:38.3]} 15... Qd5 {[%clk 0:01:40.5]} 16. Rg4 {[%clk 0:02:39.1]} 16...
Nxd4 {[%clk 0:01:27.3]} 17. Nxd4 {[%clk 0:02:25.5]} 17... cxd4 {[%clk
0:01:24.4]} 18. Rxg7 {[%clk 0:02:08.7]} 18... Qxe5 {[%clk 0:01:19.5]} 19. Qf3
{[%clk 0:02:09.4]} 19... Qxg7 {[%clk 0:00:47.7]} 20. Qxa8+ {[%clk 0:02:09.5]}
20... Bd8 {[%clk 0:00:48.3]} 21. Qc6+ {[%clk 0:02:10.6]} 21... Kf8 {[%clk
0:00:44]} 22. Bf4 {[%clk 0:02:10.4]} 22... Kg8 {[%clk 0:00:18.1]} 23. Rc1 {[%clk
0:02:03]} 23... h6 {[%clk 0:00:17.2]} 24. Qd7 {[%clk 0:02:04]} 24... Kh7 {[%clk
0:00:17.5]} 25. h5 {[%clk 0:01:40.8]} 25... Rg8 {[%clk 0:00:16.4]} 26. g3 {[%clk
0:01:42.3]} 26... e5 {[%clk 0:00:15.6]} 27. Qf5+ {[%clk 0:01:42.5]} 27... Kh8
{[%clk 0:00:13.3]} 28. Bxe5 {[%clk 0:01:43.9]} 28... f6 {[%clk 0:00:14.9]} 29.
Bxd4 {[%clk 0:01:45.3]} 29... Qg5 {[%clk 0:00:14.2]} 30. Qxg5 {[%clk 0:01:41.1]}
30... hxg5 {[%clk 0:00:15.4]} 31. Rc6 {[%clk 0:01:38.9]} 31... Rf8 {[%clk
0:00:11.2]} 32. Rc8 {[%clk 0:01:34.8]} 32... Kg7 {[%clk 0:00:10.7]} 33. h6+
{[%clk 0:01:32.1]} 33... Kf7 {[%clk 0:00:09.8]} 34. h7 {[%clk 0:01:31.7]} 1-0

[Event "*** Titled Tuesday 3|2 Blitz"]
[Site "Chess.com"]
[Date "2016.04.05"]
[Round "1"]
[White "EltajSafarli"]
[Black "Bentery"]
[Result "1-0"]
[WhiteElo "2626"]
[BlackElo "2309"]
[TimeControl "180+2"]
[EndTime "11:39:30 PDT"]
[Termination "EltajSafarli won by resignation"]

1. d4 {[%clk 0:02:57.7]} 1... d5 {[%clk 0:03:00.8]} 2. Nf3 {[%clk 0:02:59.6]}
2... Nf6 {[%clk 0:03:01.3]} 3. c4 {[%clk 0:02:58]} 3... dxc4 {[%clk 0:03:03.2]}
4. e3 {[%clk 0:02:57.3]} 4... b5 {[%clk 0:03:04]} 5. a4 {[%clk 0:02:57.6]} 5...
b4 {[%clk 0:03:05.4]} 6. Bxc4 {[%clk 0:02:57.7]} 6... e6 {[%clk 0:03:06.9]} 7.
O-O {[%clk 0:02:58.6]} 7... Bb7 {[%clk 0:03:07.8]} 8. Qe2 {[%clk 0:02:58.6]}
8... Nbd7 {[%clk 0:03:07.4]} 9. Rd1 {[%clk 0:02:58.2]} 9... c5 {[%clk
0:03:07.6]} 10. Nbd2 {[%clk 0:02:57.9]} 10... Qb8 {[%clk 0:02:32]} 11. b3 {[%clk
0:02:52.9]} 11... Bd6 {[%clk 0:02:30.1]} 12. h3 {[%clk 0:02:52.8]} 12... O-O
{[%clk 0:02:27.8]} 13. Bb2 {[%clk 0:02:53.1]} 13... cxd4 {[%clk 0:02:29.1]} 14.
Nxd4 {[%clk 0:02:52.3]} 14... a6 {[%clk 0:02:26.3]} 15. Rac1 {[%clk 0:02:52.5]}
15... Ne5 {[%clk 0:02:27.2]} 16. N2f3 {[%clk 0:02:40.6]} 16... Nxc4 {[%clk
0:02:26.9]} 17. Rxc4 {[%clk 0:02:41.7]} 17... Bd5 {[%clk 0:02:26.8]} 18. Rcc1
{[%clk 0:02:42.6]} 18... Qb7 {[%clk 0:02:27.5]} 19. Nc6 {[%clk 0:02:39.4]} 19...
Bxc6 {[%clk 0:02:07.7]} 20. Rxd6 {[%clk 0:02:38.9]} 20... Bd5 {[%clk 0:02:09]}
21. Nd2 {[%clk 0:02:24.9]} 21... Ne8 {[%clk 0:02:00.8]} 22. Rxd5 {[%clk
0:02:23.7]} 22... Qxd5 {[%clk 0:02:00.1]} 23. Nc4 {[%clk 0:02:23]} 23... Rc8
{[%clk 0:01:55.2]} 24. Rd1 {[%clk 0:02:21.8]} 24... Qg5 {[%clk 0:01:52.1]} 25.
Nb6 {[%clk 0:02:18]} 25... Rd8 {[%clk 0:01:30.1]} 26. Nd7 {[%clk 0:02:17.4]}
26... Nc7 {[%clk 0:00:53.8]} 27. Nxf8 {[%clk 0:02:13.1]} 27... Kxf8 {[%clk
0:00:55.4]} 28. Rc1 {[%clk 0:02:03]} 28... Qe7 {[%clk 0:00:54.6]} 29. Qg4 {[%clk
0:01:56.4]} 29... f6 {[%clk 0:00:47.8]} 30. Bd4 {[%clk 0:01:54.3]} 30... Rd5
{[%clk 0:00:45.4]} 31. Bb6 {[%clk 0:01:49.1]} 31... Ne8 {[%clk 0:00:44.6]} 32.
Qc4 {[%clk 0:01:47.8]} 32... Kf7 {[%clk 0:00:33.4]} 33. e4 {[%clk 0:01:42.8]}
33... Rd7 {[%clk 0:00:25.5]} 34. Qxa6 {[%clk 0:01:40.4]} 34... Qd6 {[%clk
0:00:26.2]} 35. Qb5 {[%clk 0:01:39.7]} 35... Qd2 {[%clk 0:00:21.9]} 36. Qh5+
{[%clk 0:01:37.2]} 36... g6 {[%clk 0:00:21.6]} 37. Qxh7+ {[%clk 0:01:35.8]}
37... Ng7 {[%clk 0:00:22.5]} 38. Be3 {[%clk 0:01:36.1]} 38... Qb2 {[%clk
0:00:21]} 39. Bh6 {[%clk 0:01:36.3]} 39... f5 {[%clk 0:00:18.8]} 40. exf5 {[%clk
0:01:33.7]} 40... exf5 {[%clk 0:00:18.9]} 41. Qxg7+ {[%clk 0:01:33.6]} 41...
Qxg7 {[%clk 0:00:19.8]} 42. Bxg7 {[%clk 0:01:35.5]} 42... Kxg7 {[%clk
0:00:20.9]} 43. Rc4 {[%clk 0:01:37.1]} 1-0

[Event "*** Titled Tuesday 3|2 Blitz"]
[Site "Chess.com"]
[Date "2016.04.05"]
[Round "1"]
[White "Usurpov"]
[Black "Angry_Serb"]
[Result "1-0"]
[WhiteElo "2219"]
[BlackElo "2492"]
[TimeControl "180+2"]
[EndTime "11:39:32 PDT"]
[Termination "Usurpov won by resignation"]

1. e4 {[%clk 0:03:01.9]} 1... e5 {[%clk 0:03:00.7]} 2. Nf3 {[%clk 0:02:58.3]}
2... d6 {[%clk 0:03:02.3]} 3. Nc3 {[%clk 0:02:57.3]} 3... Nf6 {[%clk 0:03:03]}
4. d4 {[%clk 0:02:55.2]} 4... exd4 {[%clk 0:03:04.9]} 5. Nxd4 {[%clk 0:02:55.1]}
5... Be7 {[%clk 0:03:06.3]} 6. Be2 {[%clk 0:02:47.5]} 6... O-O {[%clk 0:03:05]}
7. Bf4 {[%clk 0:02:47.5]} 7... c6 {[%clk 0:03:04.5]} 8. Qd2 {[%clk 0:02:46.7]}
8... b5 {[%clk 0:03:05.7]} 9. f3 {[%clk 0:02:45.9]} 9... b4 {[%clk 0:02:44.7]}
10. Nd1 {[%clk 0:02:43.9]} 10... d5 {[%clk 0:02:37.5]} 11. Nf2 {[%clk
0:02:33.6]} 11... dxe4 {[%clk 0:02:02.8]} 12. fxe4 {[%clk 0:02:27.7]} 12... Bc5
{[%clk 0:02:01.6]} 13. O-O-O {[%clk 0:02:21.4]} 13... Qb6 {[%clk 0:01:56]} 14.
Be3 {[%clk 0:01:49.6]} 14... Nbd7 {[%clk 0:01:46.2]} 15. Rhe1 {[%clk 0:01:38.2]}
15... Ne5 {[%clk 0:01:46.1]} 16. Bf1 {[%clk 0:01:39.2]} 16... Rd8 {[%clk
0:01:35.8]} 17. Kb1 {[%clk 0:01:30.7]} 17... Neg4 {[%clk 0:01:28.9]} 18. Nxg4
{[%clk 0:01:29.7]} 18... Bxg4 {[%clk 0:01:26]} 19. Be2 {[%clk 0:01:30.9]} 19...
Bxe2 {[%clk 0:01:23.3]} 20. Rxe2 {[%clk 0:01:28.3]} 20... Nxe4 {[%clk
0:01:24.4]} 21. Qe1 {[%clk 0:01:23.2]} 21... Nc3+ {[%clk 0:00:56.3]} 22. bxc3
{[%clk 0:01:18.9]} 22... bxc3+ {[%clk 0:00:55.1]} 23. Nb3 {[%clk 0:01:19.6]}
23... Rxd1+ {[%clk 0:00:52]} 24. Qxd1 {[%clk 0:01:21.5]} 24... Bxe3 {[%clk
0:00:53.6]} 25. Qe1 {[%clk 0:01:06.7]} 25... Bc5 {[%clk 0:00:48.5]} 26. Qxc3
{[%clk 0:01:04]} 26... Rd8 {[%clk 0:00:38.1]} 27. Qxc5 {[%clk 0:00:52.8]} 27...
Qc7 {[%clk 0:00:28.6]} 28. Re7 {[%clk 0:00:41]} 28... Qxh2 {[%clk 0:00:26.5]}
29. Qxc6 {[%clk 0:00:38]} 29... Qf4 {[%clk 0:00:19.6]} 30. Re8+ {[%clk
0:00:36.6]} 1-0

[Event "*** Titled Tuesday 3|2 Blitz"]
[Site "Chess.com"]
[Date "2016.04.05"]
[Round "1"]
[White "GMNeiksans"]
[Black "Journey_to_GrandMaster_YT"]
[Result "1-0"]
[WhiteElo "2646"]
[BlackElo "2340"]
[TimeControl "180+2"]
[EndTime "11:39:38 PDT"]
[Termination "GMNeiksans won by resignation"]

1. d4 {[%clk 0:03:01.9]} 1... d6 {[%clk 0:02:59.5]} 2. e4 {[%clk 0:03:02]} 2...
Nf6 {[%clk 0:03:00.3]} 3. Nc3 {[%clk 0:03:02.5]} 3... e5 {[%clk 0:03:01.5]} 4.
Nge2 {[%clk 0:02:58]} 4... Nbd7 {[%clk 0:02:55.2]} 5. g3 {[%clk 0:02:58.1]} 5...
Be7 {[%clk 0:02:55.8]} 6. Bg2 {[%clk 0:02:59.1]} 6... O-O {[%clk 0:02:56.8]} 7.
O-O {[%clk 0:03:00.2]} 7... c6 {[%clk 0:02:58]} 8. a4 {[%clk 0:03:00.9]} 8... a5
{[%clk 0:02:58.4]} 9. h3 {[%clk 0:03:01]} 9... Re8 {[%clk 0:02:58.5]} 10. Be3
{[%clk 0:03:01.3]} 10... Bf8 {[%clk 0:02:57.9]} 11. g4 {[%clk 0:02:58]} 11...
Qc7 {[%clk 0:02:48.9]} 12. Ng3 {[%clk 0:02:58.2]} 12... exd4 {[%clk 0:02:49.1]}
13. Bxd4 {[%clk 0:02:58.7]} 13... Ne5 {[%clk 0:02:26.2]} 14. g5 {[%clk
0:02:57.4]} 14... Nfd7 {[%clk 0:02:25.9]} 15. f4 {[%clk 0:02:52.4]} 15... Ng6
{[%clk 0:02:26.6]} 16. Nf5 {[%clk 0:02:44.8]} 16... Nc5 {[%clk 0:02:21.2]} 17.
Qh5 {[%clk 0:01:58.5]} 17... d5 {[%clk 0:02:18.9]} 18. Bxg7 {[%clk 0:01:50.7]}
18... Bxg7 {[%clk 0:02:03]} 19. Nxg7 {[%clk 0:01:51.8]} 19... Kxg7 {[%clk
0:02:01.9]} 20. f5 {[%clk 0:01:53]} 20... Nf4 {[%clk 0:01:36.6]} 21. Qh6+ {[%clk
0:01:49.1]} 21... Kh8 {[%clk 0:01:37.3]} 22. g6 {[%clk 0:01:25.8]} 22... fxg6
{[%clk 0:01:31.5]} 23. Rxf4 {[%clk 0:01:26.8]} 23... gxf5 {[%clk 0:01:07.6]} 24.
exd5 {[%clk 0:01:25.4]} 24... Ne4 {[%clk 0:00:50.3]} 25. Nxe4 {[%clk 0:01:18.4]}
25... Qb6+ {[%clk 0:00:35.1]} 26. Kh1 {[%clk 0:01:16.3]} 26... Qxb2 {[%clk
0:00:33.6]} 27. Nf6 {[%clk 0:00:59.4]} 27... Qxa1+ {[%clk 0:00:29.1]} 28. Kh2
{[%clk 0:01:00.6]} 28... Qxf6 {[%clk 0:00:17.3]} 29. Qxf6+ {[%clk 0:01:01.4]}
29... Kg8 {[%clk 0:00:18.9]} 30. dxc6 {[%clk 0:01:01.5]} 30... Re6 {[%clk
0:00:17.9]} 31. Qd8+ {[%clk 0:00:59.9]} 31... Kg7 {[%clk 0:00:17.5]} 32. Qc7+
{[%clk 0:01:00]} 32... Kf6 {[%clk 0:00:17.8]} 33. cxb7 {[%clk 0:01:00.7]} 33...
Bxb7 {[%clk 0:00:19.3]} 34. Qxb7 {[%clk 0:00:59]} 34... Rg8 {[%clk 0:00:20]} 35.
Rxf5+ {[%clk 0:00:57.5]} 35... Kxf5 {[%clk 0:00:20.8]} 36. Qf7+ {[%clk
0:00:58.5]} 36... Ke5 {[%clk 0:00:21.7]} 37. Qxg8 {[%clk 0:00:59.5]} 1-0

[Event "*** Titled Tuesday 3|2 Blitz"]
[Site "Chess.com"]
[Date "2016.04.05"]
[Round "1"]
[White "AdrianaNikolova"]
[Black "yarosavich"]
[Result "1-0"]
[WhiteElo "2226"]
[BlackElo "2495"]
[TimeControl "180+2"]
[EndTime "11:40:04 PDT"]
[Termination "AdrianaNikolova won by resignation"]

1. e4 {[%clk 0:03:00.9]} 1... c6 {[%clk 0:03:00.7]} 2. d4 {[%clk 0:02:53.5]}
2... d5 {[%clk 0:03:01.4]} 3. Nc3 {[%clk 0:02:54.4]} 3... dxe4 {[%clk
0:03:02.3]} 4. Nxe4 {[%clk 0:02:56.3]} 4... Bf5 {[%clk 0:03:03.2]} 5. Ng3 {[%clk
0:02:57]} 5... Bg6 {[%clk 0:03:04.3]} 6. h4 {[%clk 0:02:58.5]} 6... h6 {[%clk
0:03:05.4]} 7. Nf3 {[%clk 0:02:59.8]} 7... Nd7 {[%clk 0:03:05.6]} 8. Bd3 {[%clk
0:03:00.8]} 8... Bxd3 {[%clk 0:03:05.5]} 9. Qxd3 {[%clk 0:03:02.7]} 9... e6
{[%clk 0:03:04.8]} 10. Bd2 {[%clk 0:03:03.1]} 10... Ngf6 {[%clk 0:03:04.9]} 11.
O-O-O {[%clk 0:02:57.2]} 11... Be7 {[%clk 0:03:00.2]} 12. Ne4 {[%clk 0:02:57.5]}
12... Qb6 {[%clk 0:02:53.8]} 13. Kb1 {[%clk 0:02:36.3]} 13... Rd8 {[%clk
0:02:49.6]} 14. Nxf6+ {[%clk 0:02:26.1]} 14... Bxf6 {[%clk 0:02:44.3]} 15. Be3
{[%clk 0:02:12.8]} 15... c5 {[%clk 0:02:35.3]} 16. g4 {[%clk 0:02:05.5]} 16...
cxd4 {[%clk 0:02:31.5]} 17. Bxd4 {[%clk 0:02:07.4]} 17... Bxd4 {[%clk
0:02:18.3]} 18. Qxd4 {[%clk 0:02:09.3]} 18... Qxd4 {[%clk 0:02:17.1]} 19. Rxd4
{[%clk 0:02:11.2]} 19... Ke7 {[%clk 0:02:12.5]} 20. Rhd1 {[%clk 0:02:10]} 20...
Nf6 {[%clk 0:02:04.9]} 21. Ne5 {[%clk 0:01:48.9]} 21... Rxd4 {[%clk 0:01:50.3]}
22. Rxd4 {[%clk 0:01:48.3]} 22... g5 {[%clk 0:01:51]} 23. h5 {[%clk 0:01:39.6]}
23... Rc8 {[%clk 0:01:42.5]} 24. b4 {[%clk 0:01:27.7]} 24... Rc7 {[%clk
0:01:24.4]} 25. f4 {[%clk 0:01:08.7]} 25... gxf4 {[%clk 0:01:05.2]} 26. Rxf4
{[%clk 0:01:10.6]} 26... Rc8 {[%clk 0:00:46.2]} 27. Rd4 {[%clk 0:00:47.5]} 27...
Rg8 {[%clk 0:00:42.6]} 28. Rc4 {[%clk 0:00:41.8]} 28... Rg5 {[%clk 0:00:29.7]}
29. Nf3 {[%clk 0:00:39.1]} 29... Rd5 {[%clk 0:00:20.1]} 30. Kb2 {[%clk
0:00:36.2]} 30... Kd7 {[%clk 0:00:17.8]} 31. a4 {[%clk 0:00:32.9]} 31... Ne8
{[%clk 0:00:17.1]} 32. Rf4 {[%clk 0:00:33.1]} 32... Nd6 {[%clk 0:00:17.9]} 33.
c4 {[%clk 0:00:29.5]} 33... Rd3 {[%clk 0:00:15.6]} 34. Ne5+ {[%clk 0:00:29.6]}
1-0

[Event "*** Titled Tuesday 3|2 Blitz"]
[Site "Chess.com"]
[Date "2016.04.05"]
[Round "1"]
[White "SmoothAsAHedgehog"]
[Black "evgenyermolaev"]
[Result "1-0"]
[WhiteElo "2498"]
[BlackElo "2193"]
[TimeControl "180+2"]
[EndTime "11:40:04 PDT"]
[Termination "SmoothAsAHedgehog won by checkmate"]

1. Nf3 {[%clk 0:03:01.3]} 1... Nf6 {[%clk 0:00:31.5]} 2. g3 {[%clk 0:02:59.9]}
2... g6 {[%clk 0:00:33.4]} 3. c4 {[%clk 0:03:01.5]} 3... Bg7 {[%clk 0:00:35.3]}
4. Bg2 {[%clk 0:03:03.2]} 4... c5 {[%clk 0:00:37.2]} 5. O-O {[%clk 0:03:04.8]}
5... O-O {[%clk 0:00:39.1]} 6. Nc3 {[%clk 0:03:06.5]} 6... Nc6 {[%clk 0:00:40]}
7. d4 {[%clk 0:03:08.1]} 7... cxd4 {[%clk 0:00:41.9]} 8. Nxd4 {[%clk 0:03:09.1]}
8... d6 {[%clk 0:00:43.8]} 9. Nxc6 {[%clk 0:03:10]} 9... bxc6 {[%clk 0:00:45.7]}
10. Bxc6 {[%clk 0:03:11.5]} 10... Bh3 {[%clk 0:00:47.4]} 11. Bxa8 {[%clk
0:03:12.2]} 11... Qxa8 {[%clk 0:00:48.3]} 12. f3 {[%clk 0:03:13.4]} 12... Bxf1
{[%clk 0:00:48.2]} 13. Kxf1 {[%clk 0:03:15.3]} 13... Qc6 {[%clk 0:00:47.7]} 14.
Qd3 {[%clk 0:03:15.5]} 14... Rc8 {[%clk 0:00:48.2]} 15. Be3 {[%clk 0:03:16.6]}
15... Qxc4 {[%clk 0:00:49.1]} 16. Qxc4 {[%clk 0:03:17.4]} 16... Rxc4 {[%clk
0:00:50.8]} 17. Bxa7 {[%clk 0:03:18.9]} 17... Nd7 {[%clk 0:00:50]} 18. a4 {[%clk
0:02:26.1]} 18... Rb4 {[%clk 0:00:44.1]} 19. Nd1 {[%clk 0:02:18.8]} 19... Nc5
{[%clk 0:00:43.6]} 20. Bxc5 {[%clk 0:02:15.1]} 20... dxc5 {[%clk 0:00:44.7]} 21.
a5 {[%clk 0:02:16.5]} 21... Rb7 {[%clk 0:00:41.5]} 22. a6 {[%clk 0:02:17.2]}
22... Ra7 {[%clk 0:00:42.8]} 23. Nc3 {[%clk 0:02:13.8]} 23... Bxc3 {[%clk
0:00:43.5]} 24. bxc3 {[%clk 0:02:14.4]} 24... Kf8 {[%clk 0:00:45.4]} 25. e4
{[%clk 0:02:15.8]} 25... Ke8 {[%clk 0:00:46.5]} 26. Ke2 {[%clk 0:02:17.4]} 26...
Kd7 {[%clk 0:00:47.8]} 27. Kd3 {[%clk 0:02:18.8]} 27... Kc6 {[%clk 0:00:49.1]}
28. Kc4 {[%clk 0:02:20.1]} 28... Kb6 {[%clk 0:00:47.1]} 29. e5 {[%clk
0:02:12.1]} 29... Kc6 {[%clk 0:00:44.2]} 30. f4 {[%clk 0:02:03.1]} 30... Kb6
{[%clk 0:00:44.2]} 31. g4 {[%clk 0:02:02.4]} 31... Kc6 {[%clk 0:00:45.3]} 32. h4
{[%clk 0:02:02.4]} 32... Kb6 {[%clk 0:00:44.7]} 33. h5 {[%clk 0:02:03.3]} 33...
Kc6 {[%clk 0:00:44.8]} 34. h6 {[%clk 0:02:04.4]} 34... f6 {[%clk 0:00:41.5]} 35.
exf6 {[%clk 0:01:32.9]} 35... exf6 {[%clk 0:00:42.2]} 36. f5 {[%clk 0:01:34.5]}
36... gxf5 {[%clk 0:00:40.3]} 37. gxf5 {[%clk 0:01:35.4]} 37... Kb6 {[%clk
0:00:41.5]} 38. Rb1+ {[%clk 0:01:31.1]} 38... Kc6 {[%clk 0:00:42.4]} 39. Re1
{[%clk 0:01:31.8]} 39... Kd7 {[%clk 0:00:17.5]} 40. Kb5 {[%clk 0:01:30.3]} 40...
Rc7 {[%clk 0:00:16.9]} 41. Rd1+ {[%clk 0:01:27.4]} 41... Ke7 {[%clk 0:00:17.7]}
42. Rg1 {[%clk 0:01:22.5]} 42... Kf7 {[%clk 0:00:17.2]} 43. Rg7+ {[%clk
0:01:22.2]} 43... Kf8 {[%clk 0:00:15.3]} 44. Rxc7 {[%clk 0:01:22.2]} 44... Ke8
{[%clk 0:00:14.8]} 45. Kb6 {[%clk 0:01:21.1]} 45... Kd8 {[%clk 0:00:16.3]} 46.
a7 {[%clk 0:01:22.8]} 46... Ke8 {[%clk 0:00:16.4]} 47. a8=Q# {[%clk 0:01:23.8]}
1-0